bitfinex-derivatives/quotes_ETHF0:USTF0_20241017
["timestamp","ask_amount","ask_price","bid_price","bid_amount"]
[1729145103998,0.38137,2622.7,2622.6,3.49666265]
[1729145104198,8.71020713,2622.7,2622.6,3.49666265]
[1729145104498,14.71020713,2622.7,2622.6,3.49666265]
[1729145104692,14.24647,2622.7,2622.6,3.49666265]
[1729145105291,13.8651,2622.7,2622.4,3.99618588]
[1729145105598,0.38142,2622.4,2622.3,4.49570912]
[1729145105789,3.58922,2622.4,2622.3,4.49570912]
[1729145105991,7.40282,2622.4,2622.3,4.49570912]
[1729145106192,13.40282,2622.4,2622.3,4.49570912]
[1729145106386,13.40282,2622.4,2621.6,3.6344]
[1729145106387,13.0214,2622.4,2621.6,0.4266]
[1729145106596,2.67,2622.2,2621.6,0.4266]
[1729145106792,2.67,2622.4,2621.7,3.2078]
[1729145106990,2.67,2622.4,2621.8,1.40416112]
[1729145107391,2.67,2622.1,2621.8,0.99716112]
[1729145107591,2.67,2622.3,2621.7,3.2078]
[1729145107800,2.67,2622.3,2622.1,0.38145]
[1729145107994,3.05143,2622.3,2622.1,0.38145]
[1729145108198,3.8136,2622.2,2621.6,0.4266]
[1729145108398,2.67,2622.0,2621.9,0.38149]
[1729145108593,2.67,2622.0,2621.7,0.4108]
[1729145108800,2.67,2622.0,2621.8,0.38149]
[1729145109104,2.67,2622.0,2621.9,0.38149]
[1729145109308,2.67,2622.0,2621.7,0.79231]
[1729145109309,3.05148,2622.0,2621.7,0.79231]
[1729145109610,3.05148,2622.0,2621.8,0.3815]
[1729145110191,3.05148,2622.0,2621.7,0.79231]
[1729145110396,3.05148,2622.0,2621.8,0.3815]
[1729145110802,2.67,2622.0,2621.7,0.4108]
[1729145111300,2.67,2622.0,2621.9,0.38149]
[1729145111700,3.05145,2622.2,2621.7,0.4108]
[1729145111903,6.25923,2622.4,2621.7,0.4108]
[1729145112096,5.8778,2622.7,2622.0,0.95369]
[1729145112403,3.05138,2622.7,2622.5,0.38139]
[1729145112797,2.67,2622.7,2622.5,0.38139]
[1729145112998,0.3814,2622.6,2622.2,1.2186]
[1729145113307,0.3814,2622.6,2622.5,0.3814]
[1729145113504,3.8128,2622.6,2622.3,0.38142]
[1729145113804,3.05143,2622.3,2622.2,0.3962]
[1729145114107,0.38146,2622.1,2622.0,1.2215]
[1729145114503,10.19506,2622.1,2622.0,1.2215]
[1729145115304,4.19506,2622.1,2622.0,1.2215]
[1729145115707,0.38146,2622.1,2622.0,1.60297]
[1729145116298,0.38145,2622.2,2622.1,0.38146]
[1729145116498,2.67,2622.3,2622.0,1.2215]
[1729145116700,0.38145,2622.2,2622.1,0.38145]
[1729145116900,0.38144,2622.3,2622.2,0.38144]
[1729145117300,4.19504,2622.3,2622.2,0.38144]
[1729145117611,4.19503,2622.3,2622.2,0.38144]
[1729145118003,5.8778,2622.4,2622.0,1.2215]
[1729145118004,6.25922,2622.4,2622.0,1.2215]
[1729145118204,6.25922,2622.4,2622.3,0.38143]
[1729145118508,2.67,2622.6,2622.5,0.38139]
[1729145118702,3.2078,2622.8,2622.7,0.38137]
[1729145118905,7.38200387,2623.0,2622.4,3.2078]
[1729145119205,4.4948,2623.3,2623.2,0.3813]
[1729145119206,2.67,2623.3,2623.2,0.3813]
[1729145119511,3.05128,2623.3,2623.2,0.3813]
[1729145119703,2.67,2623.3,2623.2,0.3813]
[1729145119898,5.8778,2623.6,2623.0,3.2078]
[1729145120100,5.8778,2623.6,2623.3,0.38128]
[1729145120304,0.38127,2623.4,2623.3,0.38128]
[1729145120613,0.38128,2623.3,2623.2,0.4141]
[1729145120806,2.67,2623.4,2623.2,0.7954]
[1729145121212,0.38128,2623.3,2623.2,0.7954]
[1729145121403,2.67,2623.4,2623.2,0.7954]
[1729145121812,3.05128,2623.4,2623.2,0.7954]
[1729145122011,2.67,2623.4,2623.2,0.4141]
[1729145122213,3.05128,2623.4,2623.2,0.7954]
[1729145122422,3.2078,2623.6,2623.2,0.4141]
[1729145122708,3.05128,2623.4,2623.2,0.7954]
[1729145123010,0.38128,2623.3,2623.2,0.7954]
[1729145124214,3.05128,2623.4,2623.2,0.7954]
[1729145124417,2.67,2623.4,2623.2,0.7954]
[1729145124713,3.58908,2623.3,2623.2,0.4141]
[1729145124906,3.2078,2623.3,2622.8,0.4041]
[1729145125109,0.38133,2623.0,2622.9,0.38134]
[1729145125315,0.38134,2622.9,2622.8,0.4041]
[1729145125514,2.67,2622.9,2622.1,3.2078]
[1729145125709,3.05142,2622.4,2622.3,0.38143]
[1729145125910,2.67,2622.4,2622.3,0.38143]
[1729145126112,3.05142,2622.4,2622.2,0.8114]
[1729145126324,2.67,2622.4,2622.2,0.8114]
[1729145126521,2.67,2622.4,2622.2,1.19284]
[1729145126710,0.38143,2622.3,2622.2,0.8114]
[1729145127115,0.38143,2622.3,2622.2,0.4003]
[1729145127310,0.38146,2622.1,2622.0,1.2215]
[1729145127512,6.86506,2622.1,2622.0,1.2215]
[1729145127915,47.66506,2622.1,2622.0,1.2215]
[1729145128316,40.8,2622.1,2622.0,1.60297]
[1729145129121,0.38145,2622.2,2622.1,0.38146]
[1729145129322,3.05144,2622.3,2622.1,0.38146]
[1729145129518,41.18144,2622.2,2622.1,0.38146]
[1729145129914,41.18144,2622.2,2622.0,1.60296]
[1729145130118,2.67,2622.3,2622.0,1.2215]
[1729145130425,0.38145,2622.2,2622.0,1.60296]
[1729145130726,0.38146,2622.1,2622.0,1.60296]
[1729145130926,0.38145,2622.2,2622.0,1.2215]
[1729145131121,0.38145,2622.2,2622.0,1.60297]
[1729145131323,0.38146,2622.1,2622.0,1.2215]
[1729145131525,0.38146,2622.1,2622.0,1.60297]
[1729145132224,0.38145,2622.2,2622.1,0.38146]
[1729145132420,46.6778,2622.3,2622.1,0.38145]
[1729145132732,3.05141,2622.5,2622.4,0.38142]
[1729145133026,3.05141,2622.5,2622.0,1.2215]
[1729145133027,3.58919,2622.6,2622.5,0.3814]
[1729145133224,0.3814,2622.5,2622.4,0.3814]
[1729145134327,3.2078,2622.6,2622.5,0.3814]
[1729145134524,0.38139,2622.6,2622.5,0.3814]
[1729145135025,3.05138,2622.7,2622.6,0.38139]
[1729145136129,2.67,2622.7,2622.1,3.6056]
[1729145136327,0.38139,2622.6,2622.5,0.3814]
[1729145137224,2.67,2622.7,2622.1,4.0026]
[1729145137531,0.38139,2622.6,2622.5,0.38139]
[1729145137739,2.67,2622.7,2622.2,0.95362]
[1729145138031,3.2078,2623.3,2622.6,3.2078]
[1729145138236,0.38131,2623.2,2623.1,0.38131]
[1729145138533,0.3813,2623.2,2623.1,0.38131]
[1729145138923,0.38132,2623.1,2623.0,0.38132]
[1729145139228,3.2078,2623.3,2622.7,1.79481]
[1729145139431,2.67,2623.2,2622.7,0.8414]
[1729145139641,0.38136,2622.8,2622.7,0.8414]
[1729145139847,2.67,2622.8,2622.4,0.38141]
[1729145140020,0.3814,2622.5,2622.4,0.38141]
[1729145140225,0.3814,2622.5,2621.5,4.20496112]
[1729145140226,6.4836,2622.5,2621.5,4.20496112]
[1729145140426,3.05146,2622.1,2621.9,0.38148]
[1729145140630,3.05146,2622.1,2621.7,0.3921]
[1729145140631,0.3815,2621.8,2621.7,0.3921]
[1729145140928,2.67,2622.1,2621.7,0.3921]
[1729145141235,0.38149,2621.9,2621.7,0.77361]
[1729145141630,2.67,2622.1,2621.7,0.3921]
[1729145141830,6.5078,2622.3,2621.7,0.3921]
[1729145142035,0.3815,2621.9,2621.7,0.77362]
[1729145142633,6.5078,2622.3,2621.7,0.3921]
[1729145143024,6.5078,2622.0,2621.5,3.2078]
[1729145143527,0.38153,2621.6,2621.5,3.58934]
[1729145143730,0.38153,2621.6,2621.5,3.2078]
[1729145144032,0.38153,2621.6,2621.5,3.58934]
[1729145144231,0.38153,2621.7,2621.5,3.58934]
[1729145144539,0.38152,2621.7,2621.6,0.38153]
[1729145144835,0.38152,2621.7,2621.5,3.58934]
[1729145145129,0.38153,2621.6,2621.5,3.58934]
[1729145145333,0.38153,2621.6,2621.5,4.81334]
[1729145145533,13.49593,2621.6,2621.5,1.224]
[1729145145721,13.80983,2621.6,2621.5,1.224]
[1729145147127,7.49593,2621.6,2621.5,1.224]
[1729145147329,13.49593,2621.6,2621.5,1.224]
[1729145149538,7.49593,2621.6,2621.5,1.224]
[1729145150435,13.49593,2621.6,2621.5,1.224]
[1729145150637,7.49593,2621.6,2621.5,1.224]
[1729145153041,7.49593,2621.6,2621.5,1.60555]
[1729145153242,7.49593,2621.6,2621.5,1.224]
[1729145154536,13.49593,2621.6,2621.5,1.224]
[1729145155139,7.49593,2621.6,2621.5,1.224]
[1729145155335,13.49593,2621.6,2621.5,1.224]
[1729145155535,54.29593,2621.6,2621.5,1.224]
[1729145155836,48.29593,2621.6,2621.5,1.224]
[1729145156043,13.49593,2621.6,2621.5,1.224]
[1729145156335,7.49593,2621.6,2621.5,1.224]
[1729145156538,7.49593,2621.6,2621.5,1.60555]
[1729145156731,3.68153,2621.6,2621.5,1.60555]
[1729145157136,3.3,2621.6,2621.5,1.224]
[1729145157335,7.49593,2621.6,2621.5,1.224]
[1729145157947,13.49593,2621.6,2621.5,1.224]
[1729145158842,13.94313,2621.6,2621.5,1.224]
[1729145160543,0.38159,2621.2,2621.1,0.4178]
[1729145160745,3.68159,2621.2,2621.1,0.4178]
[1729145160936,13.49679,2621.2,2621.1,0.4178]
[1729145161438,3.68159,2621.2,2621.1,0.4178]
[1729145161646,3.68159,2621.2,2621.1,0.7994]
[1729145163844,3.06159,2621.2,2621.1,0.7994]
[1729145164647,3.06159,2621.2,2621.1,0.4178]
[1729145165143,3.06159,2621.2,2621.1,0.7994]
[1729145166250,3.06159,2621.2,2621.1,0.4178]
[1729145166540,3.06159,2621.2,2621.1,0.7994]
[1729145166749,2.68,2621.2,2621.1,0.7994]
[1729145166948,3.06159,2621.2,2621.1,0.7994]
[1729145167142,2.68,2621.2,2621.1,0.7994]
[1729145167339,3.06159,2621.2,2621.1,0.7994]
[1729145167544,6.87679,2621.2,2621.1,0.4178]
[1729145167844,6.87679,2621.2,2620.8,0.8241]
[1729145167845,0.38163,2620.9,2620.8,0.8241]
[1729145168041,6.26943,2620.9,2620.8,0.8241]
[1729145168237,0.38167,2620.7,2620.6,0.38167]
[1729145168441,2.68,2620.7,2620.6,0.38167]
[1729145169246,2.68,2620.7,2620.4,1.1989]
[1729145169435,0.38165,2620.6,2620.5,0.38166]
[1729145170141,0.38165,2620.6,2620.4,0.8172]
[1729145170640,0.38165,2620.6,2620.5,0.38166]
[1729145170844,0.38165,2620.6,2620.5,0.79636]
[1729145171041,2.68,2620.7,2620.6,0.38164]
[1729145171541,3.06163,2620.7,2620.6,0.38164]
[1729145172145,2.68,2620.7,2620.6,0.38164]
[1729145172341,3.06163,2620.7,2620.6,0.38164]
[1729145172737,5.8878,2620.9,2620.8,0.38162]
[1729145172936,6.2694,2620.9,2620.8,0.38162]
[1729145173152,2.68,2621.1,2620.5,4.57664]
[1729145173349,2.68,2621.1,2621.0,0.38157]
[1729145174457,0.38152,2621.5,2621.4,0.38151]
[1729145175352,3.06151,2621.6,2621.5,0.38151]
[1729145175539,2.68,2621.6,2621.2,0.8181]
[1729145175742,2.68,2621.6,2621.5,0.38151]
[1729145175943,2.68,2622.1,2621.5,6.0]
[1729145176243,2.68,2622.3,2622.2,0.38141]
[1729145177455,5.8878,2622.7,2622.6,0.38135]
[1729145177945,5.8878,2622.7,2622.1,3.2078]
[1729145178260,2.68,2622.3,2621.9,0.3956]
[1729145178554,40.8,2623.2,2621.9,0.3956]
[1729145178555,3.06144,2622.0,2621.9,0.3956]
[1729145179954,2.68,2622.0,2621.9,0.77706]
[1729145180747,0.38142,2622.2,2622.0,0.38143]
[1729145181063,3.2078,2622.4,2622.3,0.3814]
[1729145181453,3.2078,2622.4,2622.3,10.195]
[1729145182356,0.38135,2622.7,2622.3,13.0214]
[1729145182561,0.38135,2622.7,2622.5,0.38136]
[1729145182761,0.38135,2622.7,2622.6,0.3858]
[1729145182960,0.38141,2622.3,2622.1,0.38142]
[1729145183152,0.38143,2622.1,2622.0,0.3858]
[1729145183347,2.68,2622.2,2621.6,0.77859]
[1729145183348,0.38148,2621.8,2621.6,0.77859]
[1729145183555,0.38148,2621.8,2621.6,1.16439]
[1729145183757,0.38146,2621.9,2621.6,0.7829]
[1729145184060,3.2078,2622.2,2621.7,3.2078]
[1729145184255,0.38137,2622.5,2622.3,0.38139]
[1729145184555,3.06133,2622.8,2622.6,0.38134]
[1729145184748,0.38133,2622.8,2622.6,0.38134]
[1729145184949,0.38135,2622.7,2622.6,0.38135]
[1729145185152,0.38135,2622.7,2622.5,0.38136]
[1729145185356,3.2078,2622.9,2622.5,0.38136]
[1729145185553,3.2078,2622.9,2622.2,0.7937]
[1729145185759,2.68,2622.8,2622.2,0.7937]
[1729145185956,2.68,2622.5,2622.2,0.3858]
[1729145186272,3.0614,2622.3,2622.2,0.3858]
[1729145186561,2.68,2622.3,2621.8,3.2078]
[1729145186763,0.38141,2622.2,2621.9,0.78475]
[1729145187056,2.68,2622.3,2622.0,0.38143]
[1729145187259,0.38143,2622.1,2622.0,0.38143]
[1729145187558,0.38143,2622.2,2622.0,0.38143]
[1729145187860,2.68,2622.3,2622.0,0.38143]
[1729145188050,0.38143,2622.1,2622.0,0.38143]
[1729145188247,0.38144,2622.1,2621.9,0.78475]
[1729145188456,2.68,2622.3,2621.9,0.4033]
[1729145188767,0.38142,2622.2,2622.0,0.38144]
[1729145188959,0.38142,2622.2,2621.9,0.4033]
[1729145188960,0.3814,2622.3,2622.1,0.38142]
[1729145189148,4.55071,2622.6,2621.9,0.4033]
[1729145189149,3.2078,2622.6,2621.9,0.4033]
[1729145189354,0.38136,2622.6,2622.4,0.38138]
[1729145189657,0.38136,2622.6,2622.5,0.4236]
[1729145190053,3.0974,2622.7,2622.1,3.2078]
[1729145190361,3.06138,2622.4,2622.1,3.2078]
[1729145190561,0.38141,2622.2,2622.1,3.2078]
[1729145191052,4.19501,2622.2,2622.1,3.2078]
[1729145191247,0.38142,2622.2,2622.0,0.38144]
[1729145191652,0.38141,2622.2,2622.0,0.38144]
[1729145191858,0.38141,2622.2,2621.7,3.2078]
[1729145192062,0.38139,2622.4,2622.3,0.38139]
[1729145192362,0.38143,2622.1,2622.0,3.2078]
[1729145192664,0.38144,2622.0,2621.9,0.38145]
[1729145193161,0.38147,2621.8,2621.7,3.2078]
[1729145193461,2.68,2622.0,2621.2,0.386]
[1729145193462,0.4171,2621.9,2621.3,0.4056]
[1729145193653,0.3815,2621.6,2621.5,0.38151]
[1729145193853,0.4171,2621.9,2621.4,0.38152]
[1729145193854,0.38152,2621.5,2621.4,0.38152]
[1729145194062,0.38153,2621.4,2621.3,0.8208]
[1729145194253,0.95383,2621.4,2620.8,3.2078]
[1729145194561,3.0971,2621.3,2620.8,3.2078]
[1729145194861,0.4171,2621.3,2621.2,0.38156]
[1729145195359,2.68,2621.5,2620.9,0.95401]
[1729145195360,3.06151,2621.5,2620.9,0.95401]
[1729145195560,2.68,2621.5,2620.9,1.34231]
[1729145195761,0.38153,2621.4,2621.2,0.38154]
[1729145195952,7.3151,2621.7,2621.3,0.38154]
[1729145196157,0.38152,2621.5,2621.1,3.2078]
[1729145196357,0.3815,2621.6,2621.3,0.38153]
[1729145196565,7.3151,2621.7,2621.3,0.38153]
[1729145196566,0.38152,2621.5,2621.3,0.38154]
[1729145196763,4.39659,2621.7,2621.3,0.38154]
[1729145197057,4.39659,2621.7,2621.5,0.38151]
[1729145197258,4.0151,2621.7,2621.5,0.38151]
[1729145197451,4.39659,2621.7,2621.5,0.38151]
[1729145197654,4.0151,2621.7,2621.5,0.38151]
[1729145197864,4.0151,2621.7,2621.4,0.80223]
[1729145197865,0.38151,2621.5,2621.4,0.80223]
[1729145198065,4.0151,2621.7,2621.4,0.4207]
[1729145198258,0.38153,2621.4,2621.3,0.38153]
[1729145199365,0.38154,2621.3,2621.2,0.3959]
[1729145199566,0.38154,2621.4,2621.2,0.38156]
[1729145199766,7.3151,2621.7,2621.1,3.2078]
[1729145200262,0.38154,2621.3,2621.2,0.38155]
[1729145200858,0.38154,2621.4,2621.3,0.38154]
[1729145201561,6.5078,2621.7,2621.5,0.38151]
[1729145201562,0.38151,2621.6,2621.5,0.38151]
[1729145201960,3.58929,2621.7,2621.6,0.3815]
[1729145202163,3.2078,2621.7,2621.6,0.3815]
[1729145202569,0.4272,2621.9,2621.4,3.2078]
[1729145202762,0.38148,2621.8,2621.7,0.38148]
[1729145202955,0.38149,2621.7,2621.6,0.38149]
[1729145203267,0.38148,2621.8,2621.7,0.38148]
[1729145203461,0.4272,2621.9,2621.5,0.8213]
[1729145203660,0.80866,2621.9,2621.8,0.38147]
[1729145204056,0.38146,2621.9,2621.8,0.38147]
[1729145204268,0.38146,2621.9,2621.8,0.38146]
[1729145204668,0.4166,2622.0,2621.5,0.8213]
[1729145204669,0.38148,2621.8,2621.7,0.38148]
[1729145204964,0.4166,2622.0,2621.5,0.8213]
[1729145205360,0.38148,2621.8,2621.7,0.38148]
[1729145206164,0.4166,2622.0,2621.5,0.8213]
[1729145206367,0.4166,2622.0,2621.7,3.2078]
[1729145206573,0.38144,2622.1,2622.0,0.38143]
[1729145206870,0.3975,2622.3,2621.7,3.2078]
[1729145207069,3.2078,2622.9,2622.0,6.5078]
[1729145207260,3.2078,2622.9,2622.3,3.2078]
[1729145207466,0.38133,2622.8,2622.7,0.38133]
[1729145207764,0.38133,2622.8,2622.6,0.38134]
[1729145207765,0.38132,2622.8,2622.6,0.38134]
[1729145207960,0.38134,2622.8,2622.6,0.38134]
[1729145208161,3.2078,2622.9,2622.3,3.2078]
[1729145208363,3.2078,2622.9,2622.8,0.38132]
[1729145208364,3.58912,2622.9,2622.8,0.38132]
[1729145208575,0.38133,2622.8,2622.7,0.38133]
[1729145209171,0.38135,2622.7,2622.5,0.38136]
[1729145209477,3.3,2622.8,2622.3,3.2078]
[1729145209768,0.38138,2622.4,2622.3,3.2078]
[1729145210069,0.38138,2622.4,2622.3,0.38139]
[1729145210368,0.3962,2622.7,2622.1,4.0379]
[1729145210369,0.3962,2622.7,2622.1,0.8301]
[1729145210569,0.3962,2622.7,2621.8,3.2078]
[1729145210765,3.3,2622.5,2622.1,0.38142]
[1729145210965,0.38141,2622.2,2622.1,0.38142]
[1729145211168,0.38141,2622.3,2622.2,0.38141]
[1729145211366,0.3934,2622.4,2621.9,0.4059]
[1729145211668,0.3814,2622.3,2621.9,0.4059]
[1729145211872,0.38141,2622.2,2622.1,0.38142]
[1729145213368,0.3934,2622.4,2622.1,0.38142]
[1729145213369,0.3934,2622.4,2622.3,0.3814]
[1729145213570,3.2078,2622.9,2622.2,3.8136]
[1729145213771,0.38135,2622.7,2622.6,0.38135]
[1729145213971,0.38136,2622.6,2622.5,0.38136]
[1729145214165,4.5678,2622.9,2622.4,0.38137]
[1729145214374,0.38137,2622.5,2622.4,0.38137]
[1729145214569,0.38139,2622.4,2622.1,3.2078]
[1729145214777,0.38138,2622.5,2622.4,0.38138]
[1729145215369,0.38136,2622.6,2622.5,0.38136]
[1729145215965,0.38135,2622.7,2622.6,0.38135]
[1729145216362,0.38136,2622.6,2622.5,0.38136]
[1729145218072,5.8878,2622.9,2622.2,1.36312]
[1729145218073,0.38133,2622.8,2622.4,4.16123]
[1729145218371,0.38133,2622.8,2622.7,0.38134]
[1729145219569,0.38135,2622.7,2622.6,0.38133]
[1729145220078,3.2078,2622.9,2622.5,0.8363]
[1729145220276,0.38135,2622.7,2622.6,0.38134]
[1729145221377,0.38137,2622.5,2622.4,3.2078]
[1729145221579,0.38137,2622.5,2622.4,3.58918]
[1729145221875,0.38137,2622.6,2622.5,0.38137]
[1729145222379,6.3019,2622.9,2622.4,3.2078]
[1729145222678,0.38136,2622.7,2622.6,0.38134]
[1729145223075,4.57606,2622.9,2622.8,0.38132]
[1729145223375,4.00316,2623.3,2622.8,0.95332]
[1729145223579,0.38124,2623.4,2623.3,0.38124]
[1729145223777,0.38126,2623.3,2623.2,0.38126]
[1729145224276,2.68,2623.6,2623.1,0.8251]
[1729145224475,0.38126,2623.3,2623.2,0.38126]
[1729145224786,0.38124,2623.4,2623.3,0.38124]
[1729145224979,3.0961,2623.6,2623.1,0.8251]
[1729145224980,3.0961,2623.6,2623.2,0.953]
[1729145225274,0.4161,2623.6,2623.2,0.953]
[1729145225463,0.4161,2623.6,2623.4,0.38124]
[1729145225464,0.38123,2623.5,2623.4,0.38124]
[1729145225669,0.38125,2623.3,2623.2,1.33426]
[1729145225876,0.38123,2623.5,2623.3,0.38125]
[1729145226479,0.38124,2623.4,2623.3,0.38124]
[1729145227274,3.6332,2623.7,2623.2,0.953]
[1729145227577,0.38124,2623.5,2623.4,0.38123]
[1729145228368,3.6332,2623.7,2623.5,0.38122]
[1729145228369,0.38121,2623.6,2623.5,0.38122]
[1729145228573,4.19640592,2624.1,2623.8,0.38116]
[1729145228777,4.19640592,2624.1,2623.5,2.68]
[1729145228778,0.3996,2624.0,2623.9,0.38116]
[1729145229086,0.38113,2624.2,2624.1,0.38114]
[1729145229273,3.2078,2624.4,2623.7,2.68]
[1729145229274,0.38114,2624.1,2624.0,0.38114]
[1729145229471,0.78068,2624.5,2624.3,0.3811]
[1729145229667,0.38106,2624.7,2624.2,3.2078]
[1729145229869,0.3996,2624.9,2624.3,0.415]
[1729145230069,0.38106,2624.6,2624.5,0.38107]
[1729145230278,0.3996,2624.9,2624.5,0.38108]
[1729145230473,0.38109,2624.4,2624.2,3.2078]
[1729145230679,0.38109,2624.5,2624.3,0.3811]
[1729145230869,0.3996,2624.9,2624.3,3.2078]
[1729145231065,0.38106,2624.7,2624.5,0.38107]
[1729145231773,0.38106,2624.7,2624.5,0.64057]
[1729145231973,0.3996,2624.9,2624.5,0.64057]
[1729145232178,0.38106,2624.6,2624.5,0.2595]
[1729145232373,0.3996,2624.9,2624.5,0.2595]
[1729145232374,0.38106,2624.7,2624.5,0.64057]
[1729145232678,0.38106,2624.6,2624.5,0.64057]
[1729145232978,0.38104,2624.8,2624.7,0.38105]
[1729145233184,0.3996,2624.9,2624.7,0.38105]
[1729145233487,40.8,2625.2,2624.5,0.2595]
[1729145233668,0.38101,2625.0,2624.6,4.1328]
[1729145233875,0.38101,2625.0,2624.8,0.38103]
[1729145234074,3.1606,2625.4,2624.6,4.1328]
[1729145234277,0.38097,2625.3,2625.1,0.38098]
[1729145234587,0.38097,2625.3,2624.9,3.2078]
[1729145234588,0.86155,2625.4,2625.2,0.38097]
[1729145234785,4.5098,2625.9,2625.4,0.38095]
[1729145234786,0.38089,2625.8,2625.4,0.38095]
[1729145234977,0.38089,2625.8,2625.6,0.38092]
[1729145234978,0.3809,2625.8,2625.6,0.38092]
[1729145235284,0.38089,2625.8,2625.3,2.68]
[1729145235678,0.464,2625.9,2625.7,0.3809]
[1729145235877,0.84489,2625.9,2625.6,0.38092]
[1729145236075,0.84489,2625.9,2625.7,0.3809]
[1729145236287,0.84489,2625.9,2625.5,3.2078]
[1729145236288,0.464,2625.9,2625.5,3.2078]
[1729145236482,0.38089,2625.8,2625.6,0.38091]
[1729145236783,0.464,2625.9,2625.5,3.2078]
[1729145237087,0.464,2625.9,2625.3,0.38096]
[1729145237277,0.38094,2625.5,2625.3,0.38096]
[1729145237591,0.38094,2625.5,2625.4,0.9522]
[1729145237981,0.38094,2625.5,2625.4,4.761]
[1729145238183,0.38094,2625.5,2625.4,0.9522]
[1729145238989,4.18974,2625.5,2625.4,0.9522]
[1729145239187,10.18974,2625.5,2625.4,0.9522]
[1729145240982,0.38094,2625.5,2625.4,0.9522]
[1729145242383,0.38094,2625.5,2625.4,1.2569]
[1729145245985,10.18974,2625.5,2625.4,1.2569]
[1729145246580,10.64444,2625.5,2625.4,1.2569]
[1729145247986,4.64444,2625.5,2625.4,1.2569]
[1729145248992,0.38094,2625.5,2625.4,1.2569]
[1729145250686,4.18974,2625.5,2625.4,1.2569]
[1729145252181,0.38094,2625.5,2625.4,1.2569]
[1729145262097,0.38094,2625.5,2625.4,1.5165]
[1729145264695,0.38093,2625.5,2625.4,1.5165]
[1729145265001,0.38093,2625.5,2625.4,2.35285]
[1729145265796,0.38093,2625.5,2625.4,1.9719]
[1729145266299,0.38093,2625.5,2625.4,2.35285]
[1729145266602,0.38093,2625.5,2625.4,1.9719]
[1729145269505,0.38093,2625.5,2625.4,2.35285]
[1729145270601,0.38093,2625.5,2625.4,1.9719]
[1729145272092,0.38093,2625.5,2625.4,2.2766]
[1729145272297,0.38093,2625.5,2625.4,1.8212]
[1729145275206,1.36953592,2625.5,2625.4,1.8212]
[1729145275504,0.38093,2625.5,2625.4,1.8212]
[1729145276303,1.86383888,2625.5,2625.4,1.8212]
[1729145278105,2.35814184,2625.5,2625.4,1.8212]
[1729145278409,18.5490448,2625.5,2625.4,0.24618827]
[1729145278599,0.95249,2625.1,2624.5,5.1617801]
[1729145278801,1.87080243,2624.7,2624.6,0.38105]
[1729145279110,0.99314971,2624.7,2624.6,0.38105]
[1729145279304,0.38105,2624.7,2624.6,0.38105]
[1729145279900,1.48975243,2624.7,2624.5,4.1653]
[1729145280106,0.38106,2624.7,2624.6,0.38106]
[1729145280305,0.99321213,2624.7,2624.6,0.343]
[1729145280506,1.37426213,2624.7,2624.6,0.343]
[1729145280714,1.87080243,2624.7,2624.6,0.72406]
[1729145281007,1.87080243,2624.8,2624.7,0.38105]
[1729145281304,1.48975243,2624.8,2624.7,0.38105]
[1729145281510,1.87077243,2624.9,2624.8,0.38103]
[1729145282106,1.87077243,2624.9,2624.8,6.38103]
[1729145282107,0.38102,2624.9,2624.8,6.38103]
[1729145282308,2.36734657,2625.0,2624.9,0.38102]
[1729145282610,2.36734657,2625.0,2624.9,0.84852]
[1729145282806,2.36734657,2625.0,2624.9,0.4675]
[1729145283011,0.38105,2624.7,2624.6,0.343]
[1729145283208,3.06105,2624.7,2624.6,0.343]
[1729145283401,12.87145,2624.7,2624.6,0.343]
[1729145283800,6.87145,2624.7,2624.6,0.6478]
[1729145284814,12.87145,2624.7,2624.6,0.6478]
[1729145286007,8.85451796,2624.7,2624.6,0.6478]
[1729145286415,3.06105,2624.7,2624.6,0.6478]
[1729145286912,4.54792667,2624.7,2624.6,0.6478]
[1729145287214,3.06105,2624.7,2624.6,0.6478]
[1729145287407,4.54782387,2624.7,2624.6,0.6478]
[1729145287812,14.35792943,2624.7,2624.6,0.6478]
[1729145288012,12.87145,2624.7,2624.6,0.6478]
[1729145288318,14.85333545,2624.7,2624.6,0.6478]
[1729145288514,8.85333545,2624.7,2624.6,0.6478]
[1729145288708,2.36293545,2624.7,2624.6,0.6478]
[1729145289013,4.54686261,2624.7,2624.6,0.6478]
[1729145290216,14.35726261,2624.7,2624.6,0.6478]
[1729145290415,12.87145,2624.7,2624.6,0.6478]
[1729145290618,14.3564854,2624.7,2624.6,0.6478]
[1729145291410,13.86129133,2624.7,2624.6,0.6478]
[1729145291612,12.87145,2624.7,2624.6,0.6478]
[1729145292312,13.86125641,2624.7,2624.6,0.6478]
[1729145292503,0.38105,2624.7,2624.6,0.6478]
[1729145295113,0.38105,2624.7,2624.6,0.9526]
[1729145296612,3.06105,2624.7,2624.6,0.9526]
[1729145297021,4.05085641,2624.7,2624.6,0.9526]
[1729145297421,3.06105,2624.7,2624.6,0.9526]
[1729145297718,0.38105,2624.7,2624.6,0.9526]
[1729145298911,0.38105,2624.7,2624.6,1.4295]
[1729145299316,1.37084641,2624.8,2624.6,1.4295]
[1729145299517,0.38104,2624.8,2624.7,0.38105]
[1729145300026,0.38101,2625.0,2624.9,0.38101]
[1729145300217,0.98980641,2625.2,2624.8,3.2078]